bitfinex/quotes_ETHUSD_20250426
["timestamp","ask_amount","ask_price","bid_price","bid_amount"]
[1745631386728,5.51692492,1812.7,1812.3,5.5177303]
[1745631386953,5.022,1812.6,1812.3,5.5177303]
[1745631387467,5.022,1812.6,1812.5,5.51724137]
[1745631387654,5.022,1812.6,1812.4,5.51736503]
[1745631388364,5.022,1812.5,1812.2,5.61889497]
[1745631388533,5.022,1812.5,1812.2,12.25052626]
[1745631388734,5.022,1812.5,1812.2,6.73253469]
[1745631389236,10.53942282,1812.5,1812.0,5.51857678]
[1745631389565,10.53942282,1812.5,1812.0,5.51852803]
[1745631389766,10.53942282,1812.5,1812.1,5.51834114]
[1745631391081,5.51761774,1812.4,1811.9,11.5489519]
[1745631391265,5.51817208,1812.2,1811.8,6.33238509]
[1745631391476,5.50945981,1812.0,1811.6,6.3330504]
[1745631391655,5.51961281,1811.8,1811.3,0.01522229]
[1745631391860,5.022,1811.7,1811.4,5.5204586]
[1745631392378,10.54175416,1811.7,1811.3,5.53594659]
[1745631392586,5.022,1811.7,1811.3,5.53594648]
[1745631392999,10.54177158,1811.7,1811.3,0.01522229]
[1745631393200,5.022,1811.7,1811.3,0.01522229]
[1745631393401,5.022,1811.7,1811.5,5.52016011]
[1745631393589,5.022,1811.7,1811.4,5.52041975]
[1745631393590,5.022,1811.7,1811.3,5.53596178]
[1745631393797,5.022,1811.7,1811.4,5.52041495]
[1745631393986,5.022,1811.7,1811.5,5.52025544]
[1745631394286,5.022,1811.7,1811.6,5.51998233]
[1745631394607,5.11,1811.7,1811.6,5.51974046]
[1745631394770,5.11,1811.7,1811.6,6.62376424]
[1745631394970,5.11,1811.9,1811.7,5.51938728]
[1745631395388,5.11,1811.9,1811.5,5.52002063]
[1745631396003,5.111,1811.8,1811.6,5.51997562]
[1745631396809,5.111,1811.8,1811.5,5.52016437]
[1745631396979,5.111,1811.8,1811.6,5.51997633]
[1745631397471,5.111,1811.8,1811.4,5.52040839]
[1745631397808,5.111,1811.8,1811.5,5.52017143]
[1745631398304,0.8011,1811.7,1811.4,5.52040839]
[1745631398803,0.8011,1811.7,1811.4,5.52036432]
[1745631398988,5.111,1811.8,1811.4,5.5205918]
[1745631399199,10.6305885,1811.8,1811.3,0.01522229]
[1745631399393,0.8011,1811.7,1811.3,0.01522229]
[1745631399798,5.51998233,1811.6,1811.3,0.01522229]
[1745631399980,6.69409287,1811.6,1811.3,0.01522229]
[1745631400197,5.5205918,1811.4,1811.3,0.01522229]
[1745631400515,11.4326918,1811.4,1811.3,0.01522229]
[1745631401491,5.9121,1811.4,1811.3,0.01522229]
[1745631402310,0.8011,1811.4,1811.3,0.01522229]
[1745631402514,5.9131,1811.4,1811.3,0.01522229]
[1745631402927,5.112,1811.4,1811.3,0.01522229]
[1745631403222,5.112,1811.4,1811.3,6.08974546]
[1745631404125,5.112,1811.4,1811.3,5.53611888]
[1745631404716,16.555,1811.6,1811.4,5.52057067]
[1745631404920,5.112,1811.4,1811.3,0.01522229]
[1745631406022,14.50704572,1811.4,1811.3,0.01522229]
[1745631406209,16.50977969,1811.4,1811.3,0.01522229]
[1745631408540,16.4987185,1811.4,1811.3,0.01522229]
[1745631409743,5.113,1811.4,1811.3,5.53611888]
[1745631410247,16.555,1811.6,1811.5,5.52028705]
[1745631410540,21.668,1811.6,1811.3,5.53598512]
[1745631410711,21.668,1811.6,1811.4,5.52037648]
[1745631410911,21.668,1811.6,1811.5,5.52028705]
[1745631411312,16.555,1811.6,1811.5,6.6243534]
[1745631411526,5.113,1811.8,1811.7,5.51967765]
[1745631412020,5.113,1811.8,1811.6,5.51979102]
[1745631412224,5.113,1811.8,1811.7,5.51967765]
[1745631413439,5.113,1811.8,1811.5,1.88246635]
[1745631413645,5.113,1811.8,1811.6,5.51994651]
[1745631413849,5.113,1811.8,1811.5,5.52015703]
[1745631415256,6.11,1813.4,1811.6,6.8534]
[1745631415561,0.8257,1812.6,1812.4,5.51737047]
[1745631415865,5.112,1812.6,1812.5,5.51724137]
[1745631416059,5.112,1812.6,1812.4,5.51737706]
[1745631416261,5.112,1812.6,1812.4,5.51729707]
[1745631416464,5.112,1812.6,1812.4,5.51741272]
[1745631417032,5.1013941,1812.6,1812.4,5.51741272]
[1745631417865,5.1013941,1812.6,1812.3,5.51767165]
[1745631418070,5.1013941,1812.6,1812.3,6.70357852]
[1745631418267,5.112,1813.0,1812.6,5.51680634]
[1745631418571,5.112,1813.0,1812.7,5.51638498]
[1745631419234,5.112,1813.0,1812.8,5.5161984]
[1745631419440,5.112,1813.0,1812.9,5.51602404]
[1745631419743,16.559,1813.3,1812.9,5.51586192]
[1745631419947,21.67,1813.3,1812.8,0.55161984]
[1745631420146,21.67,1813.3,1813.0,5.51549029]
[1745631420341,21.67,1813.3,1813.1,5.51539938]
[1745631420535,21.67,1813.3,1813.1,6.61848835]
[1745631420741,21.67,1813.3,1813.1,6.61832098]
[1745631420937,5.5189608,1813.6,1813.4,5.51444981]
[1745631421254,5.5189608,1813.6,1813.3,5.5146652]
[1745631422472,5.5189608,1813.6,1813.2,6.26657078]
[1745631422671,5.5189608,1813.6,1813.2,6.26648704]
[1745631422891,5.5146768,1813.4,1812.9,6.33278634]
[1745631423091,5.5146768,1813.4,1813.0,0.63327863]
[1745631423305,5.51522922,1813.2,1812.8,6.06780246]
[1745631423463,5.141,1813.1,1812.8,6.06780246]
[1745631423658,5.141,1813.1,1812.8,5.51608293]
[1745631423897,5.141,1813.1,1813.0,5.5157198]
[1745631424682,5.141,1813.1,1812.8,5.51618357]
[1745631424853,5.141,1813.1,1812.9,5.515799]
[1745631424854,5.11148842,1813.1,1812.9,5.515799]
[1745631425057,5.11148842,1813.1,1812.9,11.03156871]
[1745631425374,5.11148842,1813.1,1812.9,5.51576971]
[1745631425573,5.10148992,1813.1,1812.9,5.51576971]
[1745631426379,5.10148992,1813.1,1813.0,5.5157198]
[1745631426582,5.10148992,1813.1,1813.0,6.3326198]
[1745631426773,5.14,1813.4,1813.3,5.51465619]
[1745631427658,5.14,1813.4,1813.2,5.51485239]
[1745631428100,5.14,1813.4,1813.2,11.02973964]
[1745631428406,5.14,1813.4,1813.3,5.51480725]
[1745631429072,0.4079608,1813.6,1813.3,5.51480725]
[1745631429273,0.4079608,1813.6,1813.5,6.27029906]
[1745631430816,0.4079608,1813.6,1813.5,6.37113012]
[1745631431273,1e-08,1813.6,1813.5,15.40113012]
[1745631431476,0.5,1814.5,1814.4,6.26756384]
[1745631431675,0.02,1814.9,1814.4,6.26756384]
[1745631431897,5.53009333,1814.9,1814.4,0.85688105]
[1745631432109,0.02,1814.9,1814.4,6.36820695]
[1745631432309,0.02,1814.9,1814.4,7.60803937]
[1745631432525,0.02,1814.9,1814.5,5.51110939]
[1745631432878,5.53011275,1814.9,1814.4,1.34060175]
[1745631433081,5.53011931,1814.9,1814.4,0.10078105]
[1745631433315,0.02,1814.9,1814.4,5.61197368]
[1745631433788,5.51044893,1814.8,1814.4,0.10078105]
[1745631434022,5.51081336,1814.7,1814.1,5.51215018]
[1745631434314,5.12875834,1814.6,1814.2,5.51184434]
[1745631434506,5.12875834,1814.6,1814.4,5.51122671]
[1745631434677,5.12875834,1814.6,1814.3,0.55118443]
[1745631434678,5.12875834,1814.6,1814.3,6.06283445]
[1745631436183,5.12875834,1814.6,1814.3,6.06279771]
[1745631436385,5.12875834,1814.6,1814.3,0.55118443]
[1745631436715,5.12875834,1814.6,1814.3,5.51157985]
[1745631436918,5.12875834,1814.6,1814.3,11.02309221]
[1745631437117,5.12875834,1814.6,1814.4,5.51144564]
[1745631437319,5.12875834,1814.6,1814.5,5.51116009]
[1745631437482,5.12875834,1814.6,1814.4,6.26665954]
[1745631437683,5.12875834,1814.6,1814.5,6.13782604]
[1745631437934,0.02,1814.9,1814.7,5.51041225]
[1745631438339,0.02,1814.9,1814.6,5.51085638]
[1745631438553,0.02,1814.9,1814.7,5.51024918]
[1745631438862,0.02,1814.9,1814.8,6.3664079]
[1745631439091,0.4079608,1815.4,1815.3,6.26413133]
[1745631439365,0.7589,1817.0,1815.8,0.7554]
[1745631439568,5.50484477,1816.6,1816.0,5.50632514]
[1745631439734,0.55048448,1816.6,1816.2,5.50600108]
[1745631439932,5.50471997,1816.7,1816.1,5.50617872]
[1745631440157,5.50542051,1816.4,1815.9,0.1006978]
[1745631440472,5.137,1816.4,1816.1,5.50619524]
[1745631440633,5.137,1816.4,1815.9,0.1006978]
[1745631440634,5.137,1816.4,1816.2,5.50584995]
[1745631441035,5.50448615,1816.7,1815.9,0.1006978]
[1745631441354,5.50511737,1816.5,1816.0,5.50641358]
[1745631441559,5.135,1816.5,1816.1,5.50627935]
[1745631441761,10.64013608,1816.5,1816.0,5.50643761]
[1745631441970,5.135,1816.5,1816.1,5.50628105]
[1745631442170,5.135,1816.5,1816.0,5.50659554]
[1745631442341,5.70354486,1816.5,1815.9,0.1006978]
[1745631442544,6.49504486,1816.5,1815.9,0.1006978]
[1745631442761,12.00024496,1816.5,1816.0,5.50645655]
[1745631442980,6.86517213,1816.5,1816.0,5.50645655]
[1745631443154,6.86517213,1816.5,1816.0,5.50638439]
[1745631443155,5.135,1816.4,1816.0,5.50638439]
[1745631443948,5.135,1816.4,1815.9,0.1006978]
[1745631444366,5.135,1816.4,1816.0,5.50660217]
[1745631444542,5.135,1816.4,1815.9,0.1006978]
[1745631444743,5.135,1816.4,1816.0,5.50636008]
[1745631445068,5.135,1816.4,1816.0,6.61781438]
[1745631445263,5.135,1816.4,1816.1,5.50628934]
[1745631445465,5.135,1816.4,1816.0,6.61783226]
[1745631445644,5.135,1816.4,1816.0,1.11138405]
[1745631445840,10.64053094,1816.4,1815.9,5.60732663]
[1745631446057,10.64043414,1816.4,1815.9,5.60746022]
[1745631446244,5.135,1816.4,1816.0,5.50645682]
[1745631446445,10.64042416,1816.4,1815.9,5.60739374]
[1745631446746,5.50582853,1816.3,1815.9,0.1006978]
[1745631446946,10.64056368,1816.4,1816.0,5.50659183]
[1745631447143,5.50623955,1816.2,1815.9,1.34000444]
[1745631447479,5.50660792,1816.0,1815.3,6.03]
[1745631447679,5.5074386,1815.8,1815.3,11.53864071]
[1745631448066,5.5074386,1815.8,1815.2,6.32662579]
[1745631448067,5.50785464,1815.6,1815.2,6.32666823]
[1745631448691,5.50785464,1815.6,1815.1,5.50933031]
[1745631448692,5.132,1815.5,1815.1,5.50924313]
[1745631448982,5.132,1815.5,1815.0,6.8117]
[1745631449169,5.132,1815.5,1815.1,0.68117]
[1745631449351,5.132,1815.5,1815.1,6.1903787]
[1745631449552,10.64016561,1815.5,1815.1,6.1903787]
[1745631450083,5.132,1815.5,1815.2,5.50902391]
[1745631450291,5.132,1815.5,1815.2,5.50882316]
[1745631450581,5.6452,1815.5,1815.0,6.13074773]
[1745631450745,5.5086358,1815.4,1815.0,6.13074773]
[1745631451387,5.50877529,1815.3,1815.0,6.13074773]
[1745631451584,5.50867266,1815.4,1815.0,6.13074773]
[1745631451959,5.6452,1815.5,1815.2,5.50898012]
[1745631452154,0.8132,1815.8,1815.0,6.13074773]
[1745631452155,0.8132,1815.8,1815.0,11.64038919]
[1745631452359,5.132,1815.8,1815.3,0.8169]
[1745631452562,0.41534319,1816.4,1815.3,0.8169]
[1745631452563,5.50695979,1815.9,1815.5,5.50797325]
[1745631452763,5.133,1816.0,1815.7,5.50723798]
[1745631453018,5.133,1816.0,1815.7,11.01453337]
[1745631453306,5.133,1816.0,1815.8,0.5524]
[1745631453511,5.6463,1816.0,1815.7,5.50723798]
[1745631453836,5.6463,1816.0,1815.7,5.50751776]
[1745631454028,5.6463,1816.0,1815.6,6.06005111]
[1745631454221,5.6463,1816.0,1815.7,5.50750303]
[1745631454422,5.6463,1816.0,1815.7,5.50731911]
[1745631454639,5.133,1816.0,1815.8,5.50698851]
[1745631455036,5.133,1816.0,1815.9,5.50691117]
[1745631455445,0.7661,1816.2,1815.9,5.50691117]
[1745631455738,5.214,1816.4,1816.3,5.50556146]
[1745631456050,5.9801,1816.8,1816.3,5.50543145]
[1745631456249,5.50500254,1816.6,1816.1,5.50625538]
[1745631456413,5.50511174,1816.5,1816.0,1.3693]
[1745631456640,0.7661,1815.6,1814.8,0.8169]
[1745631456958,5.50978623,1815.0,1814.5,6.32779066]
[1745631457168,5.214,1815.0,1814.5,0.8169]
[1745631457457,0.7661,1815.4,1815.1,5.50933755]
[1745631457643,7.70901,1815.4,1815.2,5.50882627]
[1745631457853,6.94291,1815.4,1815.1,6.06160139]
[1745631458163,6.94291,1815.4,1815.2,5.5088331]
[1745631458363,5.214,1815.4,1815.2,5.50899579]
[1745631458940,16.523,1815.5,1815.2,5.50899579]
[1745631459126,0.7661,1816.1,1815.9,5.50670988]
[1745631459324,0.7661,1816.1,1815.6,6.32459287]
[1745631459548,6.27248584,1816.1,1815.6,6.32459287]
[1745631459766,0.62724858,1816.0,1815.7,5.50739331]
[1745631459964,0.7661,1816.1,1815.7,5.50726107]
[1745631460164,5.214,1816.3,1816.0,5.50644686]
[1745631461169,10.71970148,1816.3,1815.8,5.50706364]
[1745631461935,10.71970148,1816.3,1815.8,11.01397295]
[1745631462134,5.214,1816.3,1815.8,5.50712002]
[1745631462335,6.0275236,1816.2,1815.7,5.50751776]
[1745631462648,6.0275236,1816.2,1815.5,5.50786004]
[1745631462649,6.02753755,1816.2,1815.5,5.50786004]
[1745631462853,5.50646711,1816.1,1815.6,5.50764056]
[1745631463249,5.50674439,1816.0,1815.5,5.50797022]
[1745631463561,5.213,1815.9,1815.5,5.50787572]
[1745631463765,0.5213,1815.8,1815.3,0.8169]
[1745631463931,6.0285666,1815.8,1815.2,11.53886104]
[1745631464136,6.0285666,1815.8,1815.4,5.50831237]
[1745631464478,0.5213,1815.8,1815.4,5.50831237]
[1745631465375,0.5213,1815.8,1815.3,5.50848388]
[1745631465376,6.27374482,1815.7,1815.2,5.50881639]
[1745631465660,7.50388289,1815.7,1815.3,5.50858554]
[1745631465867,1.99632621,1815.7,1815.2,5.50873251]
[1745631466566,1.99632621,1815.7,1815.1,5.50927186]
[1745631466755,5.5079923,1815.6,1815.2,5.50897405]
[1745631466958,5.213,1815.5,1815.1,5.50914701]
[1745631467265,5.213,1815.5,1815.1,5.50933832]
[1745631467266,10.72115446,1815.5,1815.1,5.50933832]
[1745631467467,5.213,1815.5,1814.9,11.53982688]
[1745631467652,0.7855,1815.3,1814.8,5.51019569]
[1745631467828,6.29424541,1815.3,1814.9,5.50974303]
[1745631468028,5.50915153,1815.2,1814.8,5.5101279]
[1745631468427,0.7855,1815.3,1814.8,5.5101279]
[1745631468428,6.29438335,1815.3,1814.8,5.5101279]
[1745631468868,0.7855,1815.3,1814.9,5.50970225]
[1745631469038,6.29446876,1815.3,1814.8,5.51012978]
[1745631469237,6.97604564,1815.3,1814.8,5.51012978]
[1745631469731,6.97604564,1815.3,1814.8,5.51000426]
[1745631469934,1.46707688,1815.3,1814.8,5.51008946]
[1745631470161,1.46707688,1815.3,1814.9,5.50982264]
[1745631470367,6.29423157,1815.3,1814.9,5.50982264]
[1745631470533,11.80325907,1815.3,1814.8,5.5101127]
[1745631470733,6.29439258,1815.3,1814.8,5.510138]
[1745631471385,5.5091294,1815.2,1814.7,5.51053267]
[1745631471562,5.50999671,1814.9,1814.5,5.51097043]
[1745631471776,0.55099967,1814.9,1814.4,5.51126812]
[1745631471982,5.51013523,1814.9,1814.4,5.51126812]
[1745631472192,5.50995381,1814.9,1814.1,6.8105]
[1745631472497,5.50995381,1814.9,1814.1,12.3228572]
[1745631472679,6.27237553,1815.0,1814.5,5.51097458]
[1745631472862,11.78229687,1815.0,1814.5,5.51101197]
[1745631473184,5.51006423,1814.9,1814.5,5.51101197]
[1745631473782,0.7626,1815.0,1814.3,5.51176518]
[1745631473982,0.7626,1815.0,1814.7,5.51037995]
[1745631474458,0.7626,1815.0,1814.7,5.5104178]
[1745631474795,0.7626,1815.0,1814.6,5.51066562]
[1745631475158,1.91119582,1815.0,1814.6,5.51066562]
[1745631475359,1.91119582,1815.0,1814.7,5.5103616]
[1745631475758,7.42095216,1815.0,1814.6,5.51069175]
[1745631475983,1.91119582,1815.0,1814.6,5.51069175]
[1745631476607,5.51005978,1814.9,1814.1,12.32261773]
[1745631476903,5.51005978,1814.9,1814.4,5.51135593]
[1745631476904,5.51025745,1814.8,1814.4,5.51135593]
[1745631477210,6.24629904,1814.9,1814.4,5.51135593]
[1745631477374,6.24629904,1814.9,1814.3,5.51161532]
[1745631477375,6.24629904,1814.9,1814.5,5.51114679]
[1745631477561,6.24629904,1814.9,1814.4,5.5112823]
[1745631477758,0.73613566,1814.9,1814.2,1.23226177]
[1745631477970,7.42087708,1815.0,1814.6,5.51057338]
[1745631479785,1.91119582,1815.0,1814.7,5.51054741]
[1745631480014,1.91119582,1815.0,1814.5,5.51116009]
[1745631480310,5.9776,1815.0,1814.8,5.51024161]
[1745631480806,5.9776,1815.0,1814.8,5.51005874]
[1745631481907,5.50998995,1814.9,1814.5,11.02191995]
[1745631482113,5.9776,1815.0,1814.5,5.51116009]
[1745631482315,5.9776,1815.0,1814.6,5.51085638]
[1745631482502,13.1869569,1815.0,1814.6,5.51085638]
[1745631482700,13.1869569,1815.0,1814.5,5.51101369]
[1745631482953,7.67727607,1815.0,1814.4,5.51132873]
[1745631483090,5.51037181,1814.8,1814.4,5.51132733]
[1745631484223,5.51037181,1814.8,1814.3,5.51157542]
[1745631484524,6.69171857,1814.8,1814.3,5.51157542]
[1745631485223,6.69171857,1814.8,1814.3,11.02310831]
[1745631485422,5.50010385,1814.5,1813.8,0.8197]
[1745631485613,5.50010385,1814.5,1814.0,5.51238522]
[1745631485942,0.793,1814.3,1813.8,6.33284671]
[1745631486091,0.793,1814.3,1813.7,0.5524]
[1745631486092,0.793,1814.3,1813.9,5.51293735]
[1745631486294,6.30496515,1814.3,1813.8,5.51309826]
[1745631486523,5.51209792,1814.2,1813.7,5.51347191]
[1745631486738,5.51209792,1814.2,1813.7,5.51337641]
[1745631486939,5.51254009,1814.1,1813.6,12.36344135]
[1745631487244,0.7819,1813.9,1813.6,6.03]
[1745631487533,0.7819,1813.9,1813.7,5.51345232]
[1745631488415,0.7819,1813.9,1813.6,5.51370286]
[1745631488743,0.7819,1813.9,1813.5,5.51392853]
[1745631489239,5.51343315,1813.8,1813.3,11.5446146]
[1745631489396,1.38979,1813.9,1813.6,5.51374392]
[1745631489596,0.7819,1813.9,1813.6,5.51369407]
[1745631489812,0.7819,1813.9,1813.7,5.51345644]
[1745631490012,0.7819,1813.9,1813.6,5.51367669]
[1745631490225,0.7819,1813.9,1813.6,5.51369975]
[1745631490503,0.7819,1813.9,1813.6,5.51375474]
[1745631491116,0.7819,1813.9,1813.5,5.51404966]
[1745631491734,0.7819,1813.7,1813.0,6.03]
[1745631491936,0.7819,1813.7,1813.2,5.51486294]
[1745631492145,6.29563439,1813.7,1813.3,5.5146554]
[1745631492326,6.29563439,1813.7,1813.1,5.51526801]
[1745631492536,5.5145337,1813.4,1813.0,5.51559365]
[1745631492843,0.8073,1813.3,1812.9,5.51602249]
[1745631493145,0.8073,1813.3,1813.1,5.51527172]
[1745631493301,0.8073,1813.3,1813.0,5.51556128]
[1745631493497,0.8073,1813.3,1813.2,5.5151114]
[1745631493803,0.8073,1813.3,1813.0,5.51557421]
[1745631494135,0.79671211,1813.3,1813.1,5.51520006]
[1745631495828,0.79671211,1813.3,1813.2,5.5151114]
[1745631496008,5.298,1813.4,1813.3,5.51480725]
[1745631496207,5.299,1813.8,1813.2,6.61814255]
[1745631496412,5.299,1813.8,1813.3,5.51480725]
[1745631496614,5.299,1813.8,1813.6,5.51389039]
[1745631497013,6.1063,1813.8,1813.4,5.51450314]
[1745631497340,5.299,1813.8,1813.5,6.06547924]
[1745631497654,5.299,1813.8,1813.5,5.51402893]
[1745631498155,5.299,1813.8,1813.5,5.51397861]
[1745631498361,10.81239805,1813.8,1813.4,5.51435076]
[1745631498652,10.81239805,1813.8,1813.6,5.5137321]
[1745631498653,5.299,1813.8,1813.6,5.5137321]
[1745631498816,0.777,1814.1,1813.9,5.51275544]
[1745631499020,0.777,1814.1,1814.0,5.51267916]
[1745631499255,5.299,1814.2,1814.1,5.51237528]
[1745631499616,5.299,1814.2,1814.0,5.5124969]
[1745631499857,5.299,1814.2,1814.1,5.51237528]
[1745631500042,5.299,1814.2,1814.0,5.51255317]
[1745631500241,5.299,1814.2,1814.1,5.51237528]
[1745631500438,5.299,1814.2,1814.1,6.61486813]
[1745631500653,22.607,1814.4,1814.2,5.5119142]
[1745631501045,22.607,1814.4,1814.1,5.51219045]
[1745631501214,22.607,1814.4,1814.2,5.5119354]
[1745631501517,22.607,1814.4,1814.3,5.51176762]
[1745631501721,22.607,1814.4,1814.2,5.51204288]
[1745631501928,21.83,1814.4,1814.3,5.51176762]
[1745631502167,0.8285,1814.7,1814.1,5.51234958]
[1745631502332,5.299,1814.7,1814.6,5.51085638]
[1745631502662,5.28791879,1814.7,1814.6,5.51085638]
[1745631504033,5.28791879,1814.7,1814.5,5.51109051]
[1745631504034,5.28791879,1814.7,1814.5,5.51100713]
[1745631504561,5.28791879,1814.7,1814.2,6.28188982]
[1745631504760,6.33937031,1814.6,1814.2,5.51181848]
[1745631504969,0.8285,1814.6,1814.2,11.02365158]
[1745631505262,0.8285,1814.6,1814.2,5.51181848]
[1745631505963,5.28791879,1814.7,1814.5,5.51100952]
[1745631506765,5.28791879,1814.7,1814.4,5.51132363]
[1745631506935,5.28791879,1814.7,1814.2,0.55118185]
[1745631507137,5.28791879,1814.7,1814.3,5.51152007]
[1745631507355,5.28791879,1814.7,1814.4,5.5114579]
[1745631508644,10.79850704,1814.7,1814.3,5.51174626]
[1745631508862,5.28791879,1814.7,1814.3,11.02330909]
[1745631509169,5.28791879,1814.7,1814.0,12.31242553]
[1745631509170,0.8285,1814.6,1814.0,12.31242553]
[1745631509394,6.86830851,1814.6,1814.1,5.51234797]
[1745631509688,5.51161901,1814.4,1813.9,5.51278931]
[1745631509850,5.51135391,1814.5,1814.0,5.51255791]
[1745631510053,5.51149394,1814.4,1814.0,5.51255791]
[1745631510572,1.10228479,1814.4,1813.6,0.7699]
[1745631510752,6.34060825,1814.2,1813.6,0.7699]
[1745631510955,10.81055137,1814.1,1813.6,5.51363951]
[1745631511257,10.80224797,1814.1,1813.7,5.51353668]
[1745631511444,10.80224797,1814.1,1813.6,5.51363951]
[1745631511445,5.51277078,1814.0,1813.6,5.51386964]
[1745631511647,10.80220794,1814.1,1813.5,5.51404973]
[1745631511881,5.2896966,1814.1,1813.4,0.7699]
[1745631512066,5.51270934,1814.0,1813.6,5.51387073]
[1745631512273,6.34223551,1813.7,1813.3,6.03]
[1745631512455,0.8285,1813.7,1813.3,11.54464376]
[1745631512994,0.8285,1813.7,1813.4,5.51447801]
[1745631513471,11.56227768,1813.7,1813.2,8.46614282]
[1745631513774,13.26984826,1813.7,1813.2,7.36311167]
[1745631513978,13.26984826,1813.7,1813.2,12.8779996]
[1745631514287,6.0485,1813.7,1813.5,5.51405431]
[1745631515391,6.0485,1813.7,1813.4,5.51431137]
[1745631515598,5.22,1813.7,1813.6,5.51389501]
[1745631516153,5.22,1813.7,1813.2,1.84825301]
[1745631516454,5.22,1813.7,1813.4,5.51446462]
[1745631517292,5.22,1813.7,1813.5,5.51417421]
[1745631517650,5.22,1813.7,1813.2,1.84825301]
[1745631517950,5.22,1813.7,1813.4,5.51435331]
[1745631518787,5.22,1813.7,1813.4,5.51426941]
[1745631519185,5.22,1813.7,1813.4,11.02853851]
[1745631519573,5.20938109,1813.7,1813.4,5.5142691]
[1745631520213,5.20938109,1813.7,1813.4,11.02853779]
[1745631520360,5.20938109,1813.7,1813.4,5.51426869]
[1745631520684,5.20938109,1813.7,1813.4,5.51432049]
[1745631520884,5.20938109,1813.7,1813.3,5.51460039]
[1745631521266,5.20938109,1813.7,1813.3,5.51457337]
[1745631521465,5.20938109,1813.7,1813.3,5.51450775]
[1745631521922,5.20938109,1813.7,1813.4,5.5142163]
[1745631522104,5.20938109,1813.7,1813.4,5.51436649]
[1745631522283,5.20938109,1813.7,1813.5,5.51392509]
[1745631522479,5.20938109,1813.7,1813.4,5.51433473]
[1745631522793,5.20938109,1813.7,1813.4,5.51429674]
[1745631522982,5.20938109,1813.7,1813.4,11.02858672]
[1745631523177,5.20938109,1813.7,1813.4,5.51428998]
[1745631523712,5.20938109,1813.7,1813.4,5.51450314]
[1745631524214,5.20938109,1813.7,1813.5,5.51416155]
[1745631524413,5.20938109,1813.7,1813.5,5.51397645]
[1745631524615,5.20938109,1813.7,1813.5,5.51394741]
[1745631525310,5.20938109,1813.7,1813.5,11.0279061]
[1745631525520,5.20938109,1813.7,1813.6,5.51389501]
[1745631525718,5.20938109,1813.7,1813.5,5.51394741]
[1745631526019,6.31092358,1813.6,1813.2,1.84825301]
[1745631526317,6.31170725,1813.3,1813.2,1.84825301]
[1745631526505,11.53370725,1813.3,1813.2,1.84825301]
[1745631526706,12.71633966,1813.3,1813.2,1.84825301]
[1745631528122,12.71032274,1813.3,1813.2,1.84825301]
[1745631530540,15.74098833,1813.3,1813.2,1.84825301]
[1745631530717,18.74098833,1813.3,1813.2,1.84825301]
[1745631531033,15.71032274,1813.3,1813.2,1.84825301]
[1745631531344,6.0189,1813.3,1813.2,1.84825301]
[1745631531493,5.222,1813.3,1813.2,7.36336441]
[1745631531695,5.222,1813.3,1813.2,1.84825301]
[1745631534300,5.222,1813.3,1813.2,7.36336441]
[1745631534497,5.222,1813.3,1813.2,8.65121994]
[1745631534692,5.223,1813.4,1813.3,5.51477458]
[1745631535426,5.223,1813.4,1813.2,3.68850854]
[1745631535733,5.223,1813.4,1813.2,7.3633568]
[1745631536095,5.223,1813.4,1813.2,57.3633568]
[1745631536733,5.223,1813.4,1813.3,5.51480725]
[1745631539093,5.223,1813.4,1813.2,57.36319153]
[1745631539296,5.223,1813.4,1813.3,5.51480725]
[1745631539540,5.223,1813.4,1813.3,11.08801128]
[1745631540221,5.223,1813.4,1813.2,52.40065301]
[1745631540430,5.223,1813.4,1813.2,51.84825301]
[1745631540737,5.223,1813.4,1813.2,57.36324384]
[1745631541442,5.223,1813.4,1813.3,5.51480725]
[1745631543751,5.223,1813.4,1813.2,57.36321674]
[1745631543921,5.223,1813.4,1813.2,51.84825301]
[1745631544452,11.34124828,1813.4,1813.2,51.84825301]
[1745631545558,6.32800725,1813.3,1813.2,51.84825301]
[1745631546758,6.75185734,1813.3,1813.2,51.84825301]
[1745631551382,1.23705009,1813.3,1813.2,51.84825301]
[1745631551588,6.75185734,1813.3,1813.2,51.84825301]
[1745631551775,5.223,1813.4,1813.2,51.84825301]
[1745631553658,5.223,1813.4,1813.3,0.01103818]
[1745631554785,5.118,1813.8,1813.5,5.51405146]
[1745631555003,5.118,1813.8,1813.5,5.51397307]
[1745631555172,5.118,1813.8,1813.4,5.5143853]
[1745631555370,10.63141734,1813.8,1813.3,11.48470378]
[1745631555576,11.6945327,1813.8,1813.3,0.78413818]
[1745631555787,5.118,1813.8,1813.3,0.78413818]
[1745631555995,5.118,1813.8,1813.4,5.51434163]
[1745631556300,5.118,1813.8,1813.5,5.51401395]
[1745631556902,5.118,1813.8,1813.6,5.51385419]
[1745631557073,5.118,1813.8,1813.5,5.51403284]
[1745631557273,5.118,1813.8,1813.6,5.51388717]
[1745631557601,5.118,1813.8,1813.7,5.513591]
[1745631558079,5.118,1813.8,1813.7,6.333691]
[1745631559398,5.118,1813.8,1813.7,5.513591]
[1745631560099,5.118,1814.5,1814.2,5.51182745]
[1745631560600,5.118,1814.6,1814.5,5.51096973]
[1745631561187,5.118,1814.6,1814.3,5.51161842]
[1745631561373,5.118,1814.6,1814.4,5.51133314]
[1745631561910,5.118,1814.6,1814.3,5.51174596]
[1745631562110,5.118,1814.6,1814.2,6.14512805]
[1745631562315,5.118,1814.6,1814.4,5.51132802]
[1745631562918,5.118,1814.6,1814.3,5.51146384]
[1745631563112,5.118,1814.6,1814.4,5.51145842]
[1745631563478,5.118,1814.6,1814.3,5.51153144]
[1745631564018,5.118,1814.6,1814.4,5.51143999]
[1745631565319,5.118,1814.6,1814.3,5.5116087]
[1745631565482,5.118,1814.6,1814.1,0.8201]
[1745631565688,5.118,1814.6,1814.2,5.51190606]
[1745631565883,5.118,1814.6,1814.3,5.51172627]
[1745631566301,5.118,1814.6,1814.4,5.51140044]
[1745631566503,5.118,1814.6,1814.3,5.51165852]
[1745631568022,11.37924048,1814.6,1814.2,5.51199406]
[1745631568420,5.8683,1814.6,1814.3,5.51170003]
[1745631568591,5.8683,1814.6,1814.3,5.5117279]
[1745631568785,5.118,1814.6,1814.5,5.51116009]
[1745631568981,0.7508,1814.9,1814.5,5.51105148]
[1745631569182,6.26086937,1814.9,1814.1,6.33244349]